[Event "Titled Tuesday Blitz October 31 Early 2023"]
[White "Castillo Pena, Patricia Evarista"]
[Black "Rosh Jain"]
[WhiteFideId "6412106"]
[BlackFideId "25789465"]
[WhiteElo "2055"]
[BlackElo "2442"]
[Result "0-1"]
[Round "2"]
[TimeControl "180+1"]
[Date "2023.10.31"]
[WhiteClock "0:00:00"]
[BlackClock "0:00:20"]
[Board "190"]

1. d4 {[%clk 0:03:00]}  Nf6 {[%clk 0:02:59]} 2. Nf3 {[%clk 0:02:57]}  e6 {[%clk 0:02:55]} 3. e3 {[%clk 0:02:57]}  d5 {[%clk 0:02:55]} 4. Bd3 {[%clk 0:02:54]}  Bd6 {[%clk 0:02:56]} 5. O-O {[%clk 0:02:51]}  O-O {[%clk 0:02:57]} 6. b3 {[%clk 0:02:51]}  b6 {[%clk 0:02:54]} 7. Bb2 {[%clk 0:02:51]}  Bb7 {[%clk 0:02:48]} 8. Nbd2 {[%clk 0:02:51]}  c5 {[%clk 0:02:47]} 9. Qe2 {[%clk 0:02:47]}  Nc6 {[%clk 0:02:46]} 10. a3 {[%clk 0:02:47]}  Qe7 {[%clk 0:02:30]} 11. Ne5 {[%clk 0:02:45]}  Rac8 {[%clk 0:02:14]} 12. f4 {[%clk 0:02:32]}  Rfd8 {[%clk 0:01:29]} 13. Rf3 {[%clk 0:02:08]}  g6 {[%clk 0:00:54]} 14. Rh3 {[%clk 0:02:01]}  Ne8 {[%clk 0:00:52]} 15. dxc5 {[%clk 0:01:21]}  bxc5 {[%clk 0:00:46]} 16. Rxh7 {[%clk 0:01:12]}  Bxe5 {[%clk 0:00:42]} 17. fxe5 {[%clk 0:00:41]}  Kxh7 {[%clk 0:00:41]} 18. Qh5+ {[%clk 0:00:41]}  Kg7 {[%clk 0:00:41]} 19. Qg4 {[%clk 0:00:35]}  Nc7 {[%clk 0:00:40]} 20. Nf3 {[%clk 0:00:35]}  Rh8 {[%clk 0:00:39]} 21. Ng5 {[%clk 0:00:33]}  Rh5 {[%clk 0:00:40]} 22. h4 {[%clk 0:00:25]}  Rch8 {[%clk 0:00:40]} 23. g3 {[%clk 0:00:25]}  Rxg5 {[%clk 0:00:38]} 24. hxg5 {[%clk 0:00:24]}  Rh5 {[%clk 0:00:38]} 25. Rf1 {[%clk 0:00:18]}  Rxg5 {[%clk 0:00:37]} 26. Qf3 {[%clk 0:00:18]}  Nxe5 {[%clk 0:00:35]} 27. Bxe5+ {[%clk 0:00:16]}  Rxe5 {[%clk 0:00:36]} 28. Qf4 {[%clk 0:00:16]}  Rh5 {[%clk 0:00:34]} 29. g4 {[%clk 0:00:15]}  Rh4 {[%clk 0:00:32]} 30. Qg3 {[%clk 0:00:14]}  Qg5 {[%clk 0:00:27]} 31. Rf4 {[%clk 0:00:08]}  e5 {[%clk 0:00:26]} 32. Rf5 {[%clk 0:00:07]}  gxf5 {[%clk 0:00:25]} 33. Qxe5+ {[%clk 0:00:06]}  Qf6 {[%clk 0:00:24]} 34. Qxc7 {[%clk 0:00:04]}  Rxg4+ {[%clk 0:00:22]} 35. Kf1 {[%clk 0:00:04]}  d4 {[%clk 0:00:21]} 36. Qxb7 {[%clk 0:00:04]}  dxe3 {[%clk 0:00:21]} 37. Qf3 {[%clk 0:00:03]}  Qe5 {[%clk 0:00:21]} 38. Bxf5 {[%clk 0:00:00]}  Rf4 {[%clk 0:00:20]} 0-1


[Site "https://www.chess.com"]

[Event "Titled Tuesday Blitz October 31 Early 2023"]
[White "Juicy_Fork"]
[Black "leonidsh29"]
[WhiteElo "2441"]
[BlackElo "2052"]
[Result "1-0"]
[Round "2"]
[TimeControl "180+1"]
[Date "2023.10.31"]
[WhiteClock "0:00:25"]
[BlackClock "0:00:00"]
[Board "191"]

1. e4 {[%clk 0:03:00]}  c5 {[%clk 0:02:57]} 2. Nf3 {[%clk 0:03:00]}  a6 {[%clk 0:02:56]} 3. c3 {[%clk 0:02:59]}  d6 {[%clk 0:02:54]} 4. d4 {[%clk 0:02:59]}  Nf6 {[%clk 0:02:53]} 5. Bd3 {[%clk 0:02:56]}  Nc6 {[%clk 0:02:50]} 6. O-O {[%clk 0:02:55]}  Bg4 {[%clk 0:02:49]} 7. Be3 {[%clk 0:02:52]}  e6 {[%clk 0:02:37]} 8. h3 {[%clk 0:02:51]}  Bh5 {[%clk 0:02:35]} 9. Re1 {[%clk 0:02:46]}  Be7 {[%clk 0:02:33]} 10. Nbd2 {[%clk 0:02:46]}  O-O {[%clk 0:02:29]} 11. Nf1 {[%clk 0:02:45]}  Qc7 {[%clk 0:02:22]} 12. Ng3 {[%clk 0:02:44]}  Bg6 {[%clk 0:02:20]} 13. d5 {[%clk 0:02:33]}  Ne5 {[%clk 0:01:42]} 14. Nxe5 {[%clk 0:02:30]}  dxe5 {[%clk 0:01:41]} 15. c4 {[%clk 0:02:24]}  exd5 {[%clk 0:01:38]} 16. cxd5 {[%clk 0:02:20]}  Bd6 {[%clk 0:01:36]} 17. Rc1 {[%clk 0:02:19]}  Qd8 {[%clk 0:01:29]} 18. Bxc5 {[%clk 0:02:14]}  Bxc5 {[%clk 0:01:28]} 19. Rxc5 {[%clk 0:02:15]}  Qb6 {[%clk 0:01:28]} 20. Qc2 {[%clk 0:02:13]}  Ne8 {[%clk 0:01:10]} 21. a4 {[%clk 0:01:54]}  Nd6 {[%clk 0:01:09]} 22. a5 {[%clk 0:01:54]}  Qd8 {[%clk 0:01:06]} 23. b4 {[%clk 0:01:38]}  f6 {[%clk 0:01:02]} 24. Rc7 {[%clk 0:01:29]}  Rc8 {[%clk 0:01:00]} 25. Rc1 {[%clk 0:01:28]}  Rxc7 {[%clk 0:00:57]} 26. Qxc7 {[%clk 0:01:29]}  Qxc7 {[%clk 0:00:57]} 27. Rxc7 {[%clk 0:01:30]}  Rd8 {[%clk 0:00:51]} 28. Kf1 {[%clk 0:01:18]}  Be8 {[%clk 0:00:50]} 29. Ke2 {[%clk 0:01:13]}  Rc8 {[%clk 0:00:49]} 30. Rxc8 {[%clk 0:01:12]}  Nxc8 {[%clk 0:00:48]} 31. Nf5 {[%clk 0:01:13]}  Bd7 {[%clk 0:00:42]} 32. Ne3 {[%clk 0:01:08]}  Kf8 {[%clk 0:00:37]} 33. Nc4 {[%clk 0:01:06]}  Ke7 {[%clk 0:00:33]} 34. g4 {[%clk 0:01:04]}  Bb5 {[%clk 0:00:31]} 35. Ne3 {[%clk 0:00:52]}  Bd7 {[%clk 0:00:30]} 36. Nc4 {[%clk 0:00:47]}  Bb5 {[%clk 0:00:29]} 37. Na3 {[%clk 0:00:47]}  Bd7 {[%clk 0:00:28]} 38. b5 {[%clk 0:00:44]}  axb5 {[%clk 0:00:25]} 39. Bxb5 {[%clk 0:00:42]}  Kd6 {[%clk 0:00:20]} 40. Nc4+ {[%clk 0:00:35]}  Kc7 {[%clk 0:00:16]} 41. Bxd7 {[%clk 0:00:35]}  Kxd7 {[%clk 0:00:15]} 42. Kd3 {[%clk 0:00:32]}  Na7 {[%clk 0:00:11]} 43. Nb6+ {[%clk 0:00:30]}  Kd6 {[%clk 0:00:10]} 44. Kc4 {[%clk 0:00:30]}  Kc7 {[%clk 0:00:09]} 45. Kc5 {[%clk 0:00:27]}  Kd8 {[%clk 0:00:09]} 46. d6 {[%clk 0:00:25]}  Nc6 {[%clk 0:00:00]} 47. a6 {[%clk 0:00:25]} 1-0


[Site "https://www.chess.com"]

[Event "Titled Tuesday Blitz October 31 Early 2023"]
[White "Mrudul Dehankar"]
[Black "ivana_999"]
[WhiteFideId "25096990"]
[WhiteElo "2430"]
[BlackElo "2030"]
[Result "1-0"]
[Round "2"]
[TimeControl "180+1"]
[Date "2023.10.31"]
[WhiteClock "0:00:09"]
[BlackClock "0:00:13"]
[Board "194"]

1. e4 {[%clk 0:03:00]}  e6 {[%clk 0:03:00]} 2. d4 {[%clk 0:02:53]}  d5 {[%clk 0:03:00]} 3. e5 {[%clk 0:02:51]}  c5 {[%clk 0:02:59]} 4. c3 {[%clk 0:02:51]}  Nc6 {[%clk 0:02:58]} 5. Nf3 {[%clk 0:02:50]}  Qb6 {[%clk 0:02:58]} 6. Bd3 {[%clk 0:02:44]}  cxd4 {[%clk 0:02:57]} 7. O-O {[%clk 0:02:44]}  Bd7 {[%clk 0:02:58]} 8. Re1 {[%clk 0:02:44]}  dxc3 {[%clk 0:02:51]} 9. Nxc3 {[%clk 0:02:29]}  a6 {[%clk 0:02:51]} 10. Be3 {[%clk 0:01:37]}  Qd8 {[%clk 0:02:32]} 11. Na4 {[%clk 0:01:28]}  Nge7 {[%clk 0:02:23]} 12. Rc1 {[%clk 0:01:07]}  Ng6 {[%clk 0:02:14]} 13. Bb6 {[%clk 0:01:03]}  Qb8 {[%clk 0:01:43]} 14. Nc5 {[%clk 0:01:01]}  Qc8 {[%clk 0:01:31]} 15. b4 {[%clk 0:00:44]}  Be7 {[%clk 0:01:25]} 16. a4 {[%clk 0:00:42]}  O-O {[%clk 0:00:55]} 17. b5 {[%clk 0:00:42]}  axb5 {[%clk 0:00:43]} 18. axb5 {[%clk 0:00:41]}  Nf4 {[%clk 0:00:16]} 19. bxc6 {[%clk 0:00:38]}  Bxc6 {[%clk 0:00:15]} 20. Nd4 {[%clk 0:00:33]}  Nxd3 {[%clk 0:00:13]} 21. Nxd3 {[%clk 0:00:30]}  Qd7 {[%clk 0:00:12]} 22. Bc5 {[%clk 0:00:29]}  Bxc5 {[%clk 0:00:10]} 23. Nxc5 {[%clk 0:00:29]}  Qe7 {[%clk 0:00:11]} 24. Nxc6 {[%clk 0:00:20]}  bxc6 {[%clk 0:00:12]} 25. Nd3 {[%clk 0:00:20]}  Rfc8 {[%clk 0:00:11]} 26. Rc5 {[%clk 0:00:19]}  Rab8 {[%clk 0:00:08]} 27. Qc2 {[%clk 0:00:19]}  g6 {[%clk 0:00:07]} 28. Rxc6 {[%clk 0:00:17]}  Rxc6 {[%clk 0:00:07]} 29. Qxc6 {[%clk 0:00:18]}  Qb7 {[%clk 0:00:08]} 30. Qc2 {[%clk 0:00:16]}  Qb3 {[%clk 0:00:08]} 31. Qd2 {[%clk 0:00:16]}  Rc8 {[%clk 0:00:06]} 32. h3 {[%clk 0:00:14]}  Rc2 {[%clk 0:00:06]} 33. Qd1 {[%clk 0:00:11]}  Qc3 {[%clk 0:00:02]} 34. Nf4 {[%clk 0:00:09]}  Rd2 {[%clk 0:00:02]} 35. Qa1 {[%clk 0:00:06]}  Qxa1 {[%clk 0:00:01]} 36. Rxa1 {[%clk 0:00:07]}  Rd4 {[%clk 0:00:02]} 37. g3 {[%clk 0:00:05]}  Re4 {[%clk 0:00:02]} 38. Nd3 {[%clk 0:00:05]}  Kg7 {[%clk 0:00:01]} 39. Ra3 {[%clk 0:00:05]}  Rd4 {[%clk 0:00:01]} 40. Kg2 {[%clk 0:00:05]}  Rc4 {[%clk 0:00:02]} 41. Kf3 {[%clk 0:00:06]}  d4 {[%clk 0:00:03]} 42. Ke4 {[%clk 0:00:06]}  Rc3 {[%clk 0:00:03]} 43. Rxc3 {[%clk 0:00:06]}  dxc3 {[%clk 0:00:04]} 44. f4 {[%clk 0:00:06]}  c2 {[%clk 0:00:04]} 45. Nc1 {[%clk 0:00:06]}  h5 {[%clk 0:00:04]} 46. Kd3 {[%clk 0:00:07]}  f6 {[%clk 0:00:04]} 47. Kxc2 {[%clk 0:00:06]}  fxe5 {[%clk 0:00:04]} 48. fxe5 {[%clk 0:00:06]}  g5 {[%clk 0:00:05]} 49. Ne2 {[%clk 0:00:06]}  Kg6 {[%clk 0:00:06]} 50. Nd4 {[%clk 0:00:06]}  Kf7 {[%clk 0:00:06]} 51. g4 {[%clk 0:00:06]}  hxg4 {[%clk 0:00:06]} 52. hxg4 {[%clk 0:00:07]}  Ke7 {[%clk 0:00:06]} 53. Kd3 {[%clk 0:00:07]}  Kd7 {[%clk 0:00:06]} 54. Nf3 {[%clk 0:00:07]}  Kc6 {[%clk 0:00:05]} 55. Kd4 {[%clk 0:00:07]}  Kd7 {[%clk 0:00:05]} 56. Nxg5 {[%clk 0:00:07]}  Ke7 {[%clk 0:00:06]} 57. Ne4 {[%clk 0:00:08]}  Kf7 {[%clk 0:00:07]} 58. Nf6 {[%clk 0:00:08]}  Kg6 {[%clk 0:00:07]} 59. Kc5 {[%clk 0:00:08]}  Kg5 {[%clk 0:00:07]} 60. Kd6 {[%clk 0:00:09]}  Kf4 {[%clk 0:00:08]} 61. Kxe6 {[%clk 0:00:09]}  Kg5 {[%clk 0:00:08]} 62. Kf7 {[%clk 0:00:10]}  Kh4 {[%clk 0:00:09]} 63. e6 {[%clk 0:00:10]}  Kg3 {[%clk 0:00:10]} 64. e7 {[%clk 0:00:11]}  Kg2 {[%clk 0:00:11]} 65. e8=Q {[%clk 0:00:11]}  Kg1 {[%clk 0:00:12]} 66. Qe3+ {[%clk 0:00:11]}  Kg2 {[%clk 0:00:13]} 67. Ne4 {[%clk 0:00:10]}  Kh1 {[%clk 0:00:12]} 68. Qf3+ {[%clk 0:00:08]}  Kg1 {[%clk 0:00:13]} 69. Qf2+ {[%clk 0:00:08]}  Kh1 {[%clk 0:00:13]} 70. Ng3# {[%clk 0:00:09]} 1-0


[Site "https://www.chess.com"]

[Event "Titled Tuesday Blitz October 31 Early 2023"]
[White "Phillips, Rene"]
[Black "crazy_m_attack"]
[WhiteFideId "2056275"]
[WhiteElo "2011"]
[BlackElo "2429"]
[Result "0-1"]
[Round "2"]
[TimeControl "180+1"]
[Date "2023.10.31"]
[WhiteClock "0:00:00"]
[BlackClock "0:00:05"]
[Board "195"]

1. d4 {[%clk 0:03:00]}  Nf6 {[%clk 0:02:59]} 2. Bf4 {[%clk 0:02:59]}  d5 {[%clk 0:02:59]} 3. e3 {[%clk 0:02:58]}  c5 {[%clk 0:02:59]} 4. c3 {[%clk 0:02:58]}  Nc6 {[%clk 0:02:59]} 5. Nd2 {[%clk 0:02:57]}  cxd4 {[%clk 0:02:59]} 6. exd4 {[%clk 0:02:56]}  Bf5 {[%clk 0:02:58]} 7. Qb3 {[%clk 0:02:55]}  Qc8 {[%clk 0:02:46]} 8. Ngf3 {[%clk 0:02:54]}  e6 {[%clk 0:02:45]} 9. Bb5 {[%clk 0:02:53]}  Nh5 {[%clk 0:02:38]} 10. Be5 {[%clk 0:02:47]}  f6 {[%clk 0:02:34]} 11. Bg3 {[%clk 0:02:47]}  Nxg3 {[%clk 0:02:34]} 12. hxg3 {[%clk 0:02:48]}  Bd6 {[%clk 0:02:22]} 13. Nh4 {[%clk 0:02:47]}  a6 {[%clk 0:02:12]} 14. Be2 {[%clk 0:02:39]}  Ne7 {[%clk 0:02:00]} 15. g4 {[%clk 0:02:25]}  Bg6 {[%clk 0:01:57]} 16. Nxg6 {[%clk 0:02:23]}  Nxg6 {[%clk 0:01:58]} 17. g5 {[%clk 0:02:03]}  Qc7 {[%clk 0:01:36]} 18. gxf6 {[%clk 0:01:58]}  gxf6 {[%clk 0:01:37]} 19. g3 {[%clk 0:01:28]}  O-O-O {[%clk 0:01:31]} 20. O-O-O {[%clk 0:01:26]}  Ne7 {[%clk 0:01:22]} 21. Rh6 {[%clk 0:01:22]}  e5 {[%clk 0:01:16]} 22. dxe5 {[%clk 0:01:15]}  fxe5 {[%clk 0:01:17]} 23. Kb1 {[%clk 0:01:03]}  Qc6 {[%clk 0:00:53]} 24. Nf3 {[%clk 0:00:57]}  d4 {[%clk 0:00:46]} 25. Nxe5 {[%clk 0:00:55]}  Qe4+ {[%clk 0:00:46]} 26. Bd3 {[%clk 0:00:19]}  Qxe5 {[%clk 0:00:44]} 27. Re6 {[%clk 0:00:19]}  Qd5 {[%clk 0:00:34]} 28. Bc4 {[%clk 0:00:15]}  Qc6 {[%clk 0:00:16]} 29. Rxd4 {[%clk 0:00:15]}  Qc7 {[%clk 0:00:12]} 30. Rde4 {[%clk 0:00:14]}  Nc6 {[%clk 0:00:10]} 31. Bd5 {[%clk 0:00:14]}  Na5 {[%clk 0:00:07]} 32. Qa4 {[%clk 0:00:13]}  Bc5 {[%clk 0:00:06]} 33. Rc4 {[%clk 0:00:13]}  Nxc4 {[%clk 0:00:06]} 34. Qxc4 {[%clk 0:00:13]}  Kb8 {[%clk 0:00:05]} 35. Re1 {[%clk 0:00:08]}  Rhf8 {[%clk 0:00:03]} 36. Qe4 {[%clk 0:00:09]}  Bb6 {[%clk 0:00:03]} 37. Bb3 {[%clk 0:00:09]}  Rfe8 {[%clk 0:00:03]} 38. Qxe8 {[%clk 0:00:08]}  Rxe8 {[%clk 0:00:04]} 39. Rxe8+ {[%clk 0:00:08]}  Ka7 {[%clk 0:00:05]} 40. Re1 {[%clk 0:00:08]}  Bxf2 {[%clk 0:00:05]} 41. Bc2 {[%clk 0:00:00]}  Bxe1 {[%clk 0:00:05]} 0-1


[Site "https://www.chess.com"]

[Event "Titled Tuesday Blitz October 31 Early 2023"]
[White "Ghosh, Chanchal Kumer"]
[Black "Leve, Nitai"]
[WhiteFideId "10201858"]
[BlackFideId "2006898"]
[WhiteElo "1955"]
[BlackElo "2427"]
[Result "0-1"]
[Round "2"]
[TimeControl "180+1"]
[Date "2023.10.31"]
[WhiteClock "0:00:00"]
[BlackClock "0:00:14"]
[Board "196"]

1. e4 {[%clk 0:02:59]}  e6 {[%clk 0:02:18]} 2. Nf3 {[%clk 0:02:56]}  d5 {[%clk 0:02:19]} 3. Nc3 {[%clk 0:02:56]}  dxe4 {[%clk 0:02:16]} 4. Nxe4 {[%clk 0:02:55]}  Nf6 {[%clk 0:02:17]} 5. Nxf6+ {[%clk 0:02:54]}  gxf6 {[%clk 0:02:17]} 6. d4 {[%clk 0:02:54]}  b6 {[%clk 0:02:17]} 7. Bd3 {[%clk 0:02:45]}  Bb7 {[%clk 0:02:14]} 8. c3 {[%clk 0:02:41]}  f5 {[%clk 0:02:14]} 9. Bf4 {[%clk 0:02:34]}  Rg8 {[%clk 0:02:13]} 10. Bf1 {[%clk 0:02:21]}  Bd6 {[%clk 0:02:11]} 11. Qd2 {[%clk 0:02:15]}  Nc6 {[%clk 0:02:04]} 12. O-O-O {[%clk 0:02:13]}  Ne7 {[%clk 0:01:59]} 13. Bb5+ {[%clk 0:01:58]}  c6 {[%clk 0:01:58]} 14. Bf1 {[%clk 0:01:56]}  Nd5 {[%clk 0:01:58]} 15. Bxd6 {[%clk 0:01:53]}  Qxd6 {[%clk 0:01:59]} 16. Ne5 {[%clk 0:01:52]}  f6 {[%clk 0:01:55]} 17. Nd3 {[%clk 0:01:50]}  O-O-O {[%clk 0:01:54]} 18. g3 {[%clk 0:01:48]}  e5 {[%clk 0:01:46]} 19. dxe5 {[%clk 0:01:45]}  fxe5 {[%clk 0:01:47]} 20. Bg2 {[%clk 0:01:40]}  e4 {[%clk 0:01:45]} 21. Ne1 {[%clk 0:01:28]}  Qc5 {[%clk 0:01:43]} 22. Qe2 {[%clk 0:01:13]}  Nb4 {[%clk 0:01:09]} 23. a3 {[%clk 0:01:02]}  Rxd1+ {[%clk 0:01:05]} 24. Qxd1 {[%clk 0:00:46]}  Rd8 {[%clk 0:01:06]} 25. Qe2 {[%clk 0:00:44]}  Nd3+ {[%clk 0:00:34]} 26. Nxd3 {[%clk 0:00:39]}  Rxd3 {[%clk 0:00:35]} 27. Rd1 {[%clk 0:00:36]}  Ba6 {[%clk 0:00:35]} 28. Rxd3 {[%clk 0:00:32]}  Bxd3 {[%clk 0:00:36]} 29. Qe3 {[%clk 0:00:26]}  Qd5 {[%clk 0:00:31]} 30. Bh3 {[%clk 0:00:18]}  Qb3 {[%clk 0:00:16]} 31. Bxf5+ {[%clk 0:00:16]}  Kb7 {[%clk 0:00:17]} 32. Qd2 {[%clk 0:00:15]}  Qa2 {[%clk 0:00:17]} 33. Kd1 {[%clk 0:00:09]}  Qb1+ {[%clk 0:00:14]} 34. Qc1 {[%clk 0:00:09]}  Be2+ {[%clk 0:00:14]} 35. Kd2 {[%clk 0:00:08]}  Qd3+ {[%clk 0:00:14]} 36. Ke1 {[%clk 0:00:08]}  Bf3 {[%clk 0:00:13]} 37. Qd2 {[%clk 0:00:00]}  Qb1+ {[%clk 0:00:14]} 0-1


[Site "https://www.chess.com"]

[Event "Titled Tuesday Blitz October 31 Early 2023"]
[White "Kuznetsova, Olga"]
[Black "Lohani, Sujana"]
[WhiteFideId "4191323"]
[BlackFideId "12311987"]
[WhiteElo "2425"]
[BlackElo "1951"]
[Result "1-0"]
[Round "2"]
[TimeControl "180+1"]
[Date "2023.10.31"]
[WhiteClock "0:01:31"]
[BlackClock "0:00:00"]
[Board "197"]

1. d4 {[%clk 0:03:00]}  Nf6 {[%clk 0:02:03]} 2. Nc3 {[%clk 0:02:51]}  g6 {[%clk 0:02:04]} 3. e4 {[%clk 0:02:50]}  Bg7 {[%clk 0:02:05]} 4. e5 {[%clk 0:02:50]}  Ng8 {[%clk 0:02:01]} 5. f4 {[%clk 0:02:51]}  d6 {[%clk 0:02:01]} 6. Nf3 {[%clk 0:02:50]}  Nh6 {[%clk 0:02:00]} 7. h3 {[%clk 0:02:49]}  O-O {[%clk 0:02:01]} 8. Bc4 {[%clk 0:02:49]}  c6 {[%clk 0:01:41]} 9. O-O {[%clk 0:02:24]}  b5 {[%clk 0:01:27]} 10. Bb3 {[%clk 0:02:22]}  a5 {[%clk 0:01:24]} 11. a4 {[%clk 0:02:20]}  b4 {[%clk 0:01:21]} 12. Ne4 {[%clk 0:02:21]}  Bf5 {[%clk 0:01:17]} 13. Neg5 {[%clk 0:02:17]}  Na6 {[%clk 0:01:09]} 14. Be3 {[%clk 0:02:04]}  Rc8 {[%clk 0:00:57]} 15. g4 {[%clk 0:01:54]}  Bd7 {[%clk 0:00:56]} 16. e6 {[%clk 0:01:52]}  Be8 {[%clk 0:00:44]} 17. exf7+ {[%clk 0:01:49]}  Bxf7 {[%clk 0:00:43]} 18. Bxf7+ {[%clk 0:01:49]}  Rxf7 {[%clk 0:00:38]} 19. Nxf7 {[%clk 0:01:49]}  Nxf7 {[%clk 0:00:37]} 20. Qd3 {[%clk 0:01:49]}  Nc7 {[%clk 0:00:34]} 21. f5 {[%clk 0:01:48]}  gxf5 {[%clk 0:00:24]} 22. Qxf5 {[%clk 0:01:49]}  Nd5 {[%clk 0:00:22]} 23. Rae1 {[%clk 0:01:35]}  Nh8 {[%clk 0:00:19]} 24. Qe6+ {[%clk 0:01:33]}  Nf7 {[%clk 0:00:14]} 25. Ng5 {[%clk 0:01:33]}  Qe8 {[%clk 0:00:03]} 26. Rxf7 {[%clk 0:01:32]}  Bf6 {[%clk 0:00:00]} 27. Rxf6+ {[%clk 0:01:31]} 1-0


[Site "https://www.chess.com"]

[Event "Titled Tuesday Blitz October 31 Early 2023"]
[White "Rodriguez, Santiago"]
[Black "Perez Cruz, Adianet"]
[WhiteFideId "3000591"]
[BlackFideId "3510115"]
[WhiteElo "2420"]
[BlackElo "1932"]
[Result "1/2-1/2"]
[Round "2"]
[TimeControl "180+1"]
[Date "2023.10.31"]
[WhiteClock "0:00:10"]
[BlackClock "0:00:33"]
[Board "199"]

1. d4 {[%clk 0:03:00]}  d5 {[%clk 0:02:59]} 2. Bf4 {[%clk 0:02:56]}  Nf6 {[%clk 0:02:58]} 3. e3 {[%clk 0:02:56]}  c6 {[%clk 0:02:57]} 4. c4 {[%clk 0:02:56]}  Bf5 {[%clk 0:02:54]} 5. Nc3 {[%clk 0:02:55]}  e6 {[%clk 0:02:53]} 6. Qb3 {[%clk 0:02:54]}  Qb6 {[%clk 0:02:44]} 7. c5 {[%clk 0:02:54]}  Qxb3 {[%clk 0:02:45]} 8. axb3 {[%clk 0:02:54]}  Be7 {[%clk 0:02:45]} 9. b4 {[%clk 0:02:54]}  O-O {[%clk 0:02:45]} 10. Nf3 {[%clk 0:02:51]}  Nbd7 {[%clk 0:02:42]} 11. Nd2 {[%clk 0:02:50]}  a6 {[%clk 0:02:39]} 12. Be2 {[%clk 0:02:46]}  h6 {[%clk 0:02:39]} 13. Nb3 {[%clk 0:02:45]}  Bd8 {[%clk 0:02:32]} 14. Na5 {[%clk 0:02:43]}  Bxa5 {[%clk 0:02:31]} 15. Rxa5 {[%clk 0:02:43]}  Ne4 {[%clk 0:02:30]} 16. O-O {[%clk 0:02:40]}  Ndf6 {[%clk 0:02:26]} 17. Rfa1 {[%clk 0:02:39]}  Nxc3 {[%clk 0:02:21]} 18. bxc3 {[%clk 0:02:38]}  Ne4 {[%clk 0:02:22]} 19. R1a3 {[%clk 0:02:17]}  g5 {[%clk 0:02:20]} 20. Be5 {[%clk 0:01:51]}  f6 {[%clk 0:02:17]} 21. Bc7 {[%clk 0:01:45]}  Rac8 {[%clk 0:02:16]} 22. Bb6 {[%clk 0:01:46]}  e5 {[%clk 0:01:51]} 23. c4 {[%clk 0:01:34]}  Be6 {[%clk 0:01:42]} 24. b5 {[%clk 0:01:28]}  dxc4 {[%clk 0:01:23]} 25. bxa6 {[%clk 0:01:25]}  bxa6 {[%clk 0:01:23]} 26. Rxa6 {[%clk 0:01:22]}  c3 {[%clk 0:01:23]} 27. f3 {[%clk 0:01:20]}  c2 {[%clk 0:01:23]} 28. Ra1 {[%clk 0:01:16]}  Nc3 {[%clk 0:01:15]} 29. Bd3 {[%clk 0:01:07]}  Nd1 {[%clk 0:00:59]} 30. dxe5 {[%clk 0:00:46]}  fxe5 {[%clk 0:01:00]} 31. Bxc2 {[%clk 0:00:44]}  Nxe3 {[%clk 0:01:00]} 32. Be4 {[%clk 0:00:44]}  Bd5 {[%clk 0:01:00]} 33. Kf2 {[%clk 0:00:41]}  Bxe4 {[%clk 0:00:56]} 34. Kxe3 {[%clk 0:00:41]}  Bd5 {[%clk 0:00:57]} 35. Ra7 {[%clk 0:00:41]}  Rf7 {[%clk 0:00:56]} 36. Rxf7 {[%clk 0:00:40]}  Kxf7 {[%clk 0:00:57]} 37. Ra7+ {[%clk 0:00:40]}  Kf6 {[%clk 0:00:58]} 38. Rh7 {[%clk 0:00:39]}  Kg6 {[%clk 0:00:58]} 39. Re7 {[%clk 0:00:37]}  Kf6 {[%clk 0:00:57]} 40. Rd7 {[%clk 0:00:37]}  Ra8 {[%clk 0:00:56]} 41. Rd6+ {[%clk 0:00:37]}  Kg7 {[%clk 0:00:55]} 42. Rd7+ {[%clk 0:00:34]}  Kg6 {[%clk 0:00:54]} 43. Ba7 {[%clk 0:00:34]}  h5 {[%clk 0:00:49]} 44. g3 {[%clk 0:00:25]}  g4 {[%clk 0:00:49]} 45. f4 {[%clk 0:00:23]}  exf4+ {[%clk 0:00:50]} 46. Kxf4 {[%clk 0:00:23]}  Rf8+ {[%clk 0:00:50]} 47. Ke5 {[%clk 0:00:22]}  Rf2 {[%clk 0:00:50]} 48. Rxd5 {[%clk 0:00:19]}  cxd5 {[%clk 0:00:50]} 49. c6 {[%clk 0:00:19]}  Rxh2 {[%clk 0:00:49]} 50. Kxd5 {[%clk 0:00:19]}  Rd2+ {[%clk 0:00:43]} 51. Bd4 {[%clk 0:00:18]}  h4 {[%clk 0:00:42]} 52. gxh4 {[%clk 0:00:17]}  g3 {[%clk 0:00:33]} 53. c7 {[%clk 0:00:17]}  Rxd4+ {[%clk 0:00:32]} 54. Kxd4 {[%clk 0:00:16]}  g2 {[%clk 0:00:33]} 55. c8=Q {[%clk 0:00:14]}  g1=Q+ {[%clk 0:00:34]} 56. Ke5 {[%clk 0:00:15]}  Qe3+ {[%clk 0:00:32]} 57. Kd6 {[%clk 0:00:15]}  Qd4+ {[%clk 0:00:31]} 58. Kc7 {[%clk 0:00:10]}  Qc5+ {[%clk 0:00:31]} 59. Kd8 {[%clk 0:00:10]}  Qxc8+ {[%clk 0:00:31]} 60. Kxc8 {[%clk 0:00:11]}  Kh5 {[%clk 0:00:32]} 61. Kd7 {[%clk 0:00:10]}  Kxh4 {[%clk 0:00:33]} 1/2-1/2


[Site "https://www.chess.com"]

[Event "Titled Tuesday Blitz October 31 Early 2023"]
[White "Gyulamiryan-koryun"]
[Black "Polaczek, Richard"]
[BlackFideId "200026"]
[WhiteElo "1913"]
[BlackElo "2409"]
[Result "0-1"]
[Round "2"]
[TimeControl "180+1"]
[Date "2023.10.31"]
[WhiteClock "0:00:00"]
[BlackClock "0:00:12"]
[Board "201"]

1. e4 {[%clk 0:02:54]}  Nf6 {[%clk 0:02:59]} 2. e5 {[%clk 0:02:54]}  Nd5 {[%clk 0:02:59]} 3. d4 {[%clk 0:02:53]}  d6 {[%clk 0:02:59]} 4. c4 {[%clk 0:02:53]}  Nb6 {[%clk 0:02:59]} 5. f4 {[%clk 0:02:53]}  dxe5 {[%clk 0:02:59]} 6. fxe5 {[%clk 0:02:54]}  c5 {[%clk 0:02:59]} 7. d5 {[%clk 0:02:52]}  g6 {[%clk 0:03:00]} 8. Be3 {[%clk 0:02:50]}  Bg7 {[%clk 0:02:59]} 9. Nf3 {[%clk 0:02:44]}  Bg4 {[%clk 0:02:55]} 10. Nc3 {[%clk 0:02:29]}  O-O {[%clk 0:02:52]} 11. Bxc5 {[%clk 0:02:21]}  Bxe5 {[%clk 0:02:35]} 12. h3 {[%clk 0:02:16]}  Bxf3 {[%clk 0:02:18]} 13. Qxf3 {[%clk 0:02:15]}  N8d7 {[%clk 0:02:19]} 14. Be3 {[%clk 0:02:08]}  Rc8 {[%clk 0:02:13]} 15. c5 {[%clk 0:01:52]}  Nxc5 {[%clk 0:02:02]} 16. Rd1 {[%clk 0:01:43]}  Nba4 {[%clk 0:01:52]} 17. Nxa4 {[%clk 0:01:33]}  Nxa4 {[%clk 0:01:50]} 18. b3 {[%clk 0:01:06]}  Qa5+ {[%clk 0:01:44]} 19. Bd2 {[%clk 0:01:04]}  Nc3 {[%clk 0:01:31]} 20. Bc4 {[%clk 0:01:02]}  b5 {[%clk 0:01:25]} 21. Bd3 {[%clk 0:00:38]}  Qxa2 {[%clk 0:00:57]} 22. O-O {[%clk 0:00:37]}  Nxd1 {[%clk 0:00:56]} 23. Qxd1 {[%clk 0:00:35]}  Qb2 {[%clk 0:00:44]} 24. Bxb5 {[%clk 0:00:32]}  Qc2 {[%clk 0:00:42]} 25. Bd7 {[%clk 0:00:27]}  Qxd1 {[%clk 0:00:41]} 26. Rxd1 {[%clk 0:00:27]}  Rcd8 {[%clk 0:00:37]} 27. Bc6 {[%clk 0:00:20]}  e6 {[%clk 0:00:34]} 28. Bh6 {[%clk 0:00:19]}  Bg7 {[%clk 0:00:30]} 29. Bg5 {[%clk 0:00:17]}  f6 {[%clk 0:00:29]} 30. Be3 {[%clk 0:00:13]}  exd5 {[%clk 0:00:27]} 31. Bxa7 {[%clk 0:00:12]}  Kh8 {[%clk 0:00:24]} 32. Bc5 {[%clk 0:00:11]}  Rf7 {[%clk 0:00:20]} 33. b4 {[%clk 0:00:07]}  f5 {[%clk 0:00:19]} 34. Kh2 {[%clk 0:00:04]}  Be5+ {[%clk 0:00:16]} 35. g3 {[%clk 0:00:04]}  Rc7 {[%clk 0:00:14]} 36. Bxd5 {[%clk 0:00:00]}  Rcd7 {[%clk 0:00:12]} 0-1


[Site "https://www.chess.com"]